[Event "Titled Tuesday Blitz July 25 Early 2023"]
[White "Agibileg, Uurtsaikh"]
[Black "Matko, Ognjen"]
[WhiteFideId "4901606"]
[BlackFideId "14509717"]
[WhiteElo "2623"]
[BlackElo "2317"]
[Result "0-1"]
[Round "1"]
[TimeControl "180+2"]
[Date "2023.07.25"]
[WhiteClock "0:00:07"]
[BlackClock "0:00:48"]
[Board "162"]

1. d4 {[%clk 0:02:59]}  Nf6 {[%clk 0:02:57]} 2. c4 {[%clk 0:02:58]}  g6 {[%clk 0:02:57]} 3. Nc3 {[%clk 0:02:58]}  Bg7 {[%clk 0:02:57]} 4. e4 {[%clk 0:02:56]}  O-O {[%clk 0:02:56]} 5. Be2 {[%clk 0:02:51]}  d6 {[%clk 0:02:55]} 6. Nf3 {[%clk 0:02:51]}  c5 {[%clk 0:02:55]} 7. O-O {[%clk 0:02:43]}  cxd4 {[%clk 0:02:53]} 8. Nxd4 {[%clk 0:02:44]}  Nc6 {[%clk 0:02:53]} 9. Be3 {[%clk 0:02:44]}  Bd7 {[%clk 0:02:48]} 10. f3 {[%clk 0:02:38]}  Nxd4 {[%clk 0:02:47]} 11. Bxd4 {[%clk 0:02:38]}  Bc6 {[%clk 0:02:48]} 12. Qd2 {[%clk 0:02:35]}  Nd7 {[%clk 0:02:47]} 13. Bxg7 {[%clk 0:02:34]}  Kxg7 {[%clk 0:02:46]} 14. Kh1 {[%clk 0:02:35]}  a5 {[%clk 0:02:45]} 15. Rad1 {[%clk 0:02:23]}  Qb6 {[%clk 0:02:44]} 16. Nd5 {[%clk 0:01:44]}  Bxd5 {[%clk 0:02:43]} 17. exd5 {[%clk 0:01:45]}  a4 {[%clk 0:02:36]} 18. f4 {[%clk 0:01:44]}  Nf6 {[%clk 0:02:33]} 19. Bd3 {[%clk 0:01:41]}  Rfc8 {[%clk 0:02:20]} 20. Rde1 {[%clk 0:01:34]}  Rc7 {[%clk 0:02:19]} 21. f5 {[%clk 0:01:31]}  a3 {[%clk 0:01:49]} 22. b3 {[%clk 0:01:28]}  Qd4 {[%clk 0:01:48]} 23. Rf4 {[%clk 0:01:21]}  Qb2 {[%clk 0:01:47]} 24. Rf2 {[%clk 0:01:11]}  Qxd2 {[%clk 0:01:44]} 25. Rxd2 {[%clk 0:01:12]}  g5 {[%clk 0:01:39]} 26. Rde2 {[%clk 0:01:08]}  Kf8 {[%clk 0:01:36]} 27. h3 {[%clk 0:01:08]}  Re8 {[%clk 0:01:17]} 28. Kh2 {[%clk 0:01:03]}  Nd7 {[%clk 0:01:16]} 29. Kg3 {[%clk 0:00:58]}  Ne5 {[%clk 0:01:15]} 30. Rxe5 {[%clk 0:00:56]}  dxe5 {[%clk 0:01:14]} 31. Rxe5 {[%clk 0:00:57]}  Rd8 {[%clk 0:01:11]} 32. Kg4 {[%clk 0:00:54]}  h6 {[%clk 0:01:09]} 33. h4 {[%clk 0:00:51]}  gxh4 {[%clk 0:01:09]} 34. Kxh4 {[%clk 0:00:42]}  Kg7 {[%clk 0:01:08]} 35. Re3 {[%clk 0:00:30]}  Kf6 {[%clk 0:01:06]} 36. g4 {[%clk 0:00:21]}  Rg8 {[%clk 0:01:01]} 37. Be2 {[%clk 0:00:20]}  b5 {[%clk 0:00:57]} 38. b4 {[%clk 0:00:14]}  bxc4 {[%clk 0:00:56]} 39. Rxa3 {[%clk 0:00:14]}  c3 {[%clk 0:00:56]} 40. Ra6+ {[%clk 0:00:13]}  Ke5 {[%clk 0:00:55]} 41. Bd3 {[%clk 0:00:14]}  c2 {[%clk 0:00:55]} 42. Bxc2 {[%clk 0:00:14]}  Rxc2 {[%clk 0:00:56]} 43. d6 {[%clk 0:00:10]}  Kf4 {[%clk 0:00:53]} 44. Kh3 {[%clk 0:00:09]}  Rxg4 {[%clk 0:00:49]} 45. dxe7 {[%clk 0:00:06]}  Rg3+ {[%clk 0:00:48]} 46. Kh4 {[%clk 0:00:07]}  Rh2# {[%clk 0:00:48]} 0-1


[Site "https://www.chess.com"]

[Event "Titled Tuesday Blitz July 25 Early 2023"]
[White "Wimalasuriya, Kasun M."]
[Black "Khusenkhojaev, Muhammad"]
[WhiteFideId "9906789"]
[BlackFideId "14700247"]
[WhiteElo "2316"]
[BlackElo "2618"]
[Result "0-1"]
[Round "1"]
[TimeControl "180+2"]
[Date "2023.07.25"]
[WhiteClock "0:01:40"]
[BlackClock "0:01:49"]
[Board "165"]

1. d4 {[%clk 0:02:56]}  Nf6 {[%clk 0:02:58]} 2. c4 {[%clk 0:02:55]}  g6 {[%clk 0:02:58]} 3. Nf3 {[%clk 0:02:54]}  Bg7 {[%clk 0:02:58]} 4. g3 {[%clk 0:02:55]}  O-O {[%clk 0:02:58]} 5. Bg2 {[%clk 0:02:55]}  d6 {[%clk 0:02:58]} 6. O-O {[%clk 0:02:54]}  c6 {[%clk 0:02:58]} 7. Nc3 {[%clk 0:02:54]}  Qa5 {[%clk 0:02:58]} 8. h3 {[%clk 0:02:51]}  Qa6 {[%clk 0:02:56]} 9. Qd3 {[%clk 0:02:47]}  d5 {[%clk 0:02:55]} 10. cxd5 {[%clk 0:02:43]}  Qxd3 {[%clk 0:02:54]} 11. exd3 {[%clk 0:02:42]}  Nxd5 {[%clk 0:02:54]} 12. Nxd5 {[%clk 0:02:41]}  cxd5 {[%clk 0:02:54]} 13. Be3 {[%clk 0:02:41]}  Nc6 {[%clk 0:02:53]} 14. a3 {[%clk 0:02:40]}  e6 {[%clk 0:02:48]} 15. Rac1 {[%clk 0:02:39]}  Bd7 {[%clk 0:02:48]} 16. Rc2 {[%clk 0:02:37]}  Rfc8 {[%clk 0:02:41]} 17. Rfc1 {[%clk 0:02:37]}  Na5 {[%clk 0:02:40]} 18. Ne5 {[%clk 0:02:34]}  Rxc2 {[%clk 0:02:38]} 19. Rxc2 {[%clk 0:02:34]}  Rc8 {[%clk 0:02:38]} 20. Rxc8+ {[%clk 0:02:31]}  Bxc8 {[%clk 0:02:39]} 21. Kf1 {[%clk 0:02:29]}  Nc6 {[%clk 0:02:33]} 22. Nxc6 {[%clk 0:02:28]}  bxc6 {[%clk 0:02:34]} 23. Ke2 {[%clk 0:02:28]}  a5 {[%clk 0:02:31]} 24. Kd2 {[%clk 0:02:26]}  Ba6 {[%clk 0:02:28]} 25. Bf3 {[%clk 0:02:25]}  a4 {[%clk 0:02:27]} 26. Bd1 {[%clk 0:02:25]}  Bb5 {[%clk 0:02:26]} 27. Bf3 {[%clk 0:02:15]}  Kf8 {[%clk 0:02:24]} 28. Kc2 {[%clk 0:02:15]}  h5 {[%clk 0:02:23]} 29. b3 {[%clk 0:02:00]}  axb3+ {[%clk 0:02:22]} 30. Kxb3 {[%clk 0:01:59]}  Bxd3 {[%clk 0:02:22]} 31. Bd1 {[%clk 0:01:53]}  Ke7 {[%clk 0:02:20]} 32. a4 {[%clk 0:01:53]}  Kd7 {[%clk 0:02:18]} 33. Kc3 {[%clk 0:01:53]}  Ba6 {[%clk 0:02:17]} 34. Bb3 {[%clk 0:01:52]}  c5 {[%clk 0:02:16]} 35. Bc2 {[%clk 0:01:50]}  Kc6 {[%clk 0:02:14]} 36. Bd3 {[%clk 0:01:49]}  cxd4+ {[%clk 0:02:07]} 37. Bxd4 {[%clk 0:01:50]}  Bxd4+ {[%clk 0:02:07]} 38. Kxd4 {[%clk 0:01:51]}  e5+ {[%clk 0:02:06]} 39. Ke3 {[%clk 0:01:49]}  d4+ {[%clk 0:02:06]} 40. Ke4 {[%clk 0:01:49]}  Bxd3+ {[%clk 0:01:56]} 41. Kxd3 {[%clk 0:01:49]}  Kd5 {[%clk 0:01:52]} 42. f3 {[%clk 0:01:47]}  f5 {[%clk 0:01:52]} 43. g4 {[%clk 0:01:47]}  e4+ {[%clk 0:01:51]} 44. Ke2 {[%clk 0:01:43]}  Kc4 {[%clk 0:01:51]} 45. fxe4 {[%clk 0:01:39]}  fxe4 {[%clk 0:01:51]} 46. gxh5 {[%clk 0:01:40]}  gxh5 {[%clk 0:01:50]} 47. Kd2 {[%clk 0:01:40]}  Kb4 {[%clk 0:01:49]} 0-1


[Site "https://www.chess.com"]

[Event "Titled Tuesday Blitz July 25 Early 2023"]
[White "Lenaerts, Lennert"]
[Black "Tsyhanchuk, Stanislav"]
[WhiteFideId "211435"]
[BlackFideId "13505130"]
[WhiteElo "2615"]
[BlackElo "2309"]
[Result "1-0"]
[Round "1"]
[TimeControl "180+2"]
[Date "2023.07.25"]
[WhiteClock "0:01:02"]
[BlackClock "0:00:10"]
[Board "166"]

1. d4 {[%clk 0:02:57]}  Nf6 {[%clk 0:02:46]} 2. c4 {[%clk 0:02:57]}  e6 {[%clk 0:02:46]} 3. Nc3 {[%clk 0:02:58]}  Bb4 {[%clk 0:02:45]} 4. g3 {[%clk 0:02:57]}  O-O {[%clk 0:02:38]} 5. Bg2 {[%clk 0:02:57]}  c5 {[%clk 0:02:38]} 6. Nf3 {[%clk 0:02:57]}  Ne4 {[%clk 0:02:36]} 7. Qd3 {[%clk 0:02:57]}  d5 {[%clk 0:02:33]} 8. O-O {[%clk 0:02:53]}  cxd4 {[%clk 0:02:25]} 9. Nxd4 {[%clk 0:02:49]}  Bxc3 {[%clk 0:02:15]} 10. bxc3 {[%clk 0:02:49]}  Nc5 {[%clk 0:02:12]} 11. Qe3 {[%clk 0:02:44]}  b6 {[%clk 0:02:04]} 12. cxd5 {[%clk 0:02:44]}  exd5 {[%clk 0:02:04]} 13. Rd1 {[%clk 0:02:41]}  Be6 {[%clk 0:01:57]} 14. Ba3 {[%clk 0:02:37]}  Qf6 {[%clk 0:01:49]} 15. Nxe6 {[%clk 0:02:35]}  fxe6 {[%clk 0:01:47]} 16. c4 {[%clk 0:02:33]}  Nbd7 {[%clk 0:01:25]} 17. cxd5 {[%clk 0:02:27]}  e5 {[%clk 0:01:22]} 18. Rac1 {[%clk 0:02:23]}  Qd6 {[%clk 0:01:20]} 19. Bh3 {[%clk 0:02:20]}  Nf6 {[%clk 0:00:56]} 20. Be6+ {[%clk 0:02:16]}  Kh8 {[%clk 0:00:56]} 21. Rxc5 {[%clk 0:02:12]}  bxc5 {[%clk 0:00:56]} 22. Bxc5 {[%clk 0:02:12]}  Qa6 {[%clk 0:00:54]} 23. Bxf8 {[%clk 0:02:12]}  Rxf8 {[%clk 0:00:54]} 24. Qxe5 {[%clk 0:02:11]}  h6 {[%clk 0:00:47]} 25. d6 {[%clk 0:02:10]}  Qb6 {[%clk 0:00:38]} 26. Qd4 {[%clk 0:02:03]}  Qc6 {[%clk 0:00:34]} 27. Qxa7 {[%clk 0:01:57]}  Ne4 {[%clk 0:00:30]} 28. f3 {[%clk 0:01:39]}  Nc3 {[%clk 0:00:28]} 29. Rd2 {[%clk 0:01:34]}  Nb1 {[%clk 0:00:21]} 30. Rd3 {[%clk 0:01:29]}  Qc1+ {[%clk 0:00:20]} 31. Kg2 {[%clk 0:01:28]}  Qe1 {[%clk 0:00:19]} 32. Qf2 {[%clk 0:01:24]}  Qa5 {[%clk 0:00:19]} 33. e4 {[%clk 0:01:22]}  Na3 {[%clk 0:00:16]} 34. d7 {[%clk 0:01:13]}  Nb5 {[%clk 0:00:16]} 35. Qc5 {[%clk 0:01:12]}  Rd8 {[%clk 0:00:15]} 36. Kh3 {[%clk 0:01:07]}  Qa6 {[%clk 0:00:13]} 37. Bc4 {[%clk 0:01:05]}  Qa7 {[%clk 0:00:14]} 38. Qxb5 {[%clk 0:01:04]}  Qc7 {[%clk 0:00:12]} 39. Qd5 {[%clk 0:01:03]}  Kh7 {[%clk 0:00:09]} 40. Qg8+ {[%clk 0:01:00]}  Rxg8 {[%clk 0:00:08]} 41. Bxg8+ {[%clk 0:01:01]}  Kxg8 {[%clk 0:00:09]} 42. d8=Q+ {[%clk 0:01:01]}  Qxd8 {[%clk 0:00:10]} 43. Rxd8+ {[%clk 0:01:02]} 1-0


[Site "https://www.chess.com"]

[Event "Titled Tuesday Blitz July 25 Early 2023"]
[White "Arat, Ufuk Sezen"]
[Black "kiwibobo"]
[WhiteFideId "6309089"]
[WhiteElo "2614"]
[BlackElo "2305"]
[Result "1-0"]
[Round "1"]
[TimeControl "180+2"]
[Date "2023.07.25"]
[WhiteClock "0:00:12"]
[BlackClock "0:00:05"]
[Board "168"]

1. e4 {[%clk 0:02:59]}  e5 {[%clk 0:02:58]} 2. Nf3 {[%clk 0:03:00]}  Nc6 {[%clk 0:02:58]} 3. Bb5 {[%clk 0:03:01]}  a6 {[%clk 0:02:57]} 4. Ba4 {[%clk 0:03:00]}  Nf6 {[%clk 0:02:58]} 5. O-O {[%clk 0:03:01]}  b5 {[%clk 0:02:59]} 6. Bb3 {[%clk 0:03:01]}  Bc5 {[%clk 0:02:59]} 7. Re1 {[%clk 0:03:00]}  O-O {[%clk 0:02:59]} 8. c3 {[%clk 0:03:00]}  d6 {[%clk 0:02:59]} 9. h3 {[%clk 0:03:00]}  h6 {[%clk 0:02:59]} 10. d4 {[%clk 0:03:00]}  Bb6 {[%clk 0:02:59]} 11. Be3 {[%clk 0:02:57]}  Bb7 {[%clk 0:02:46]} 12. Nbd2 {[%clk 0:02:57]}  exd4 {[%clk 0:02:42]} 13. cxd4 {[%clk 0:02:56]}  Nb4 {[%clk 0:02:43]} 14. Qb1 {[%clk 0:02:36]}  c5 {[%clk 0:02:29]} 15. dxc5 {[%clk 0:02:28]}  dxc5 {[%clk 0:02:26]} 16. e5 {[%clk 0:02:29]}  Nfd5 {[%clk 0:02:17]} 17. Bxd5 {[%clk 0:01:56]}  Nxd5 {[%clk 0:02:06]} 18. Ne4 {[%clk 0:01:54]}  Nxe3 {[%clk 0:02:01]} 19. Rxe3 {[%clk 0:01:53]}  c4 {[%clk 0:01:59]} 20. Re1 {[%clk 0:01:53]}  Qd5 {[%clk 0:01:50]} 21. Qc2 {[%clk 0:01:49]}  Qe6 {[%clk 0:01:33]} 22. Rad1 {[%clk 0:01:40]}  Rfd8 {[%clk 0:01:31]} 23. Rd6 {[%clk 0:01:31]}  Bxe4 {[%clk 0:01:18]} 24. Qxe4 {[%clk 0:01:07]}  Rxd6 {[%clk 0:00:58]} 25. Qxa8+ {[%clk 0:01:07]}  Rd8 {[%clk 0:00:57]} 26. Qb7 {[%clk 0:01:02]}  Rd3 {[%clk 0:00:42]} 27. Qa8+ {[%clk 0:00:55]}  Rd8 {[%clk 0:00:39]} 28. Qe4 {[%clk 0:00:55]}  Qd5 {[%clk 0:00:36]} 29. Qxd5 {[%clk 0:00:50]}  Rxd5 {[%clk 0:00:37]} 30. e6 {[%clk 0:00:50]}  fxe6 {[%clk 0:00:36]} 31. Rxe6 {[%clk 0:00:51]}  Rd1+ {[%clk 0:00:35]} 32. Kh2 {[%clk 0:00:43]}  Bxf2 {[%clk 0:00:35]} 33. Rxa6 {[%clk 0:00:44]}  Rb1 {[%clk 0:00:25]} 34. b3 {[%clk 0:00:23]}  cxb3 {[%clk 0:00:24]} 35. Nd2 {[%clk 0:00:20]}  bxa2 {[%clk 0:00:19]} 36. Rxa2 {[%clk 0:00:21]}  Rb4 {[%clk 0:00:19]} 37. Nf3 {[%clk 0:00:19]}  Be3 {[%clk 0:00:19]} 38. h4 {[%clk 0:00:18]}  Bf4+ {[%clk 0:00:18]} 39. Kh3 {[%clk 0:00:18]}  Rb1 {[%clk 0:00:16]} 40. h5 {[%clk 0:00:16]}  b4 {[%clk 0:00:16]} 41. Kg4 {[%clk 0:00:15]}  Bd6 {[%clk 0:00:14]} 42. Ra8+ {[%clk 0:00:16]}  Kf7 {[%clk 0:00:14]} 43. Kf5 {[%clk 0:00:15]}  b3 {[%clk 0:00:13]} 44. Ra7+ {[%clk 0:00:14]}  Ke8 {[%clk 0:00:10]} 45. Ke6 {[%clk 0:00:13]}  Bb8 {[%clk 0:00:05]} 46. Ra8 {[%clk 0:00:12]}  Kd8 {[%clk 0:00:06]} 47. Rxb8+ {[%clk 0:00:11]}  Kc7 {[%clk 0:00:06]} 48. Rb4 {[%clk 0:00:12]}  b2 {[%clk 0:00:07]} 49. Kf7 {[%clk 0:00:12]}  Rg1 {[%clk 0:00:08]} 50. Rxb2 {[%clk 0:00:12]}  Kc6 {[%clk 0:00:05]} 1-0


[Site "https://www.chess.com"]

[Event "Titled Tuesday Blitz July 25 Early 2023"]
[White "Pinero Rodriguez, Carlos Jose"]
[Black "arturdailima"]
[WhiteFideId "3901726"]
[WhiteElo "2605"]
[BlackElo "2303"]
[Result "1-0"]
[Round "1"]
[TimeControl "180+2"]
[Date "2023.07.25"]
[WhiteClock "0:01:04"]
[BlackClock "0:00:13"]
[Board "170"]

1. b3 {[%clk 0:03:00]}  e5 {[%clk 0:02:56]} 2. Bb2 {[%clk 0:03:01]}  Nc6 {[%clk 0:02:56]} 3. e3 {[%clk 0:03:01]}  Nf6 {[%clk 0:02:56]} 4. c4 {[%clk 0:03:01]}  d5 {[%clk 0:02:53]} 5. cxd5 {[%clk 0:03:02]}  Nxd5 {[%clk 0:02:53]} 6. a3 {[%clk 0:03:02]}  Be7 {[%clk 0:02:51]} 7. Qc2 {[%clk 0:03:02]}  O-O {[%clk 0:02:48]} 8. Nf3 {[%clk 0:03:03]}  f6 {[%clk 0:02:47]} 9. d3 {[%clk 0:03:01]}  Be6 {[%clk 0:02:44]} 10. Nbd2 {[%clk 0:03:01]}  Re8 {[%clk 0:02:42]} 11. Be2 {[%clk 0:03:02]}  Bf8 {[%clk 0:02:42]} 12. O-O {[%clk 0:03:02]}  Qd7 {[%clk 0:02:42]} 13. Rac1 {[%clk 0:03:02]}  Rad8 {[%clk 0:02:40]} 14. b4 {[%clk 0:03:02]}  a6 {[%clk 0:02:36]} 15. Rfd1 {[%clk 0:03:00]}  Kh8 {[%clk 0:02:24]} 16. Ne4 {[%clk 0:03:00]}  f5 {[%clk 0:02:10]} 17. Nc5 {[%clk 0:02:50]}  Bxc5 {[%clk 0:02:09]} 18. Qxc5 {[%clk 0:02:51]}  Bf7 {[%clk 0:02:04]} 19. Ng5 {[%clk 0:02:37]}  Bg6 {[%clk 0:01:59]} 20. Nf3 {[%clk 0:02:31]}  Bf7 {[%clk 0:01:57]} 21. g3 {[%clk 0:02:12]}  f4 {[%clk 0:01:33]} 22. e4 {[%clk 0:02:11]}  Nf6 {[%clk 0:01:31]} 23. Nxe5 {[%clk 0:02:07]}  Nxe5 {[%clk 0:01:26]} 24. Bxe5 {[%clk 0:02:08]}  fxg3 {[%clk 0:01:14]} 25. hxg3 {[%clk 0:02:02]}  c6 {[%clk 0:01:03]} 26. Bxf6 {[%clk 0:01:38]}  gxf6 {[%clk 0:01:03]} 27. Kg2 {[%clk 0:01:37]}  Bg6 {[%clk 0:00:58]} 28. Bf3 {[%clk 0:01:34]}  Kg7 {[%clk 0:00:56]} 29. Qe3 {[%clk 0:01:27]}  Qd4 {[%clk 0:00:54]} 30. Qxd4 {[%clk 0:01:26]}  Rxd4 {[%clk 0:00:55]} 31. Rc3 {[%clk 0:01:27]}  Red8 {[%clk 0:00:54]} 32. Be2 {[%clk 0:01:13]}  Bxe4+ {[%clk 0:00:50]} 33. dxe4 {[%clk 0:01:14]}  Rxd1 {[%clk 0:00:50]} 34. Bxd1 {[%clk 0:01:15]}  Rxd1 {[%clk 0:00:51]} 35. Kf3 {[%clk 0:01:15]}  Kf7 {[%clk 0:00:48]} 36. Kf4 {[%clk 0:01:15]}  Ke6 {[%clk 0:00:48]} 37. f3 {[%clk 0:01:14]}  h5 {[%clk 0:00:46]} 38. Rc5 {[%clk 0:01:13]}  Rd3 {[%clk 0:00:40]} 39. Rxh5 {[%clk 0:01:13]}  Rxa3 {[%clk 0:00:39]} 40. Rh6 {[%clk 0:01:14]}  Rb3 {[%clk 0:00:36]} 41. g4 {[%clk 0:01:14]}  Kf7 {[%clk 0:00:15]} 42. Rh7+ {[%clk 0:01:14]}  Kg6 {[%clk 0:00:16]} 43. Rxb7 {[%clk 0:01:15]}  a5 {[%clk 0:00:16]} 44. Rb6 {[%clk 0:01:12]}  Rxb4 {[%clk 0:00:16]} 45. Rxc6 {[%clk 0:01:12]}  Kf7 {[%clk 0:00:17]} 46. Ra6 {[%clk 0:01:12]}  a4 {[%clk 0:00:17]} 47. g5 {[%clk 0:01:06]}  fxg5+ {[%clk 0:00:16]} 48. Kxg5 {[%clk 0:01:07]}  Rb3 {[%clk 0:00:17]} 49. f4 {[%clk 0:01:07]}  a3 {[%clk 0:00:18]} 50. e5 {[%clk 0:01:06]}  Rg3+ {[%clk 0:00:13]} 51. Kf5 {[%clk 0:01:05]}  Ke7 {[%clk 0:00:13]} 52. Ra7+ {[%clk 0:01:05]}  Kf8 {[%clk 0:00:14]} 53. Kf6 {[%clk 0:01:05]}  Ke8 {[%clk 0:00:13]} 54. e6 {[%clk 0:01:04]} 1-0


[Site "https://www.chess.com"]

[Event "Titled Tuesday Blitz July 25 Early 2023"]
[White "Arabidze, Meri"]
[Black "EdmundPlayer"]
[WhiteFideId "13604040"]
[WhiteElo "2602"]
[BlackElo "2298"]
[Result "1-0"]
[Round "1"]
[TimeControl "180+2"]
[Date "2023.07.25"]
[WhiteClock "0:01:09"]
[BlackClock "0:00:04"]
[Board "172"]

1. d4 {[%clk 0:03:00]}  Nf6 {[%clk 0:02:57]} 2. Nf3 {[%clk 0:03:00]}  g6 {[%clk 0:02:56]} 3. g3 {[%clk 0:03:00]}  d5 {[%clk 0:02:55]} 4. Bg2 {[%clk 0:03:00]}  Bg7 {[%clk 0:02:55]} 5. O-O {[%clk 0:03:01]}  O-O {[%clk 0:02:54]} 6. c4 {[%clk 0:03:01]}  c6 {[%clk 0:02:52]} 7. cxd5 {[%clk 0:03:01]}  cxd5 {[%clk 0:02:52]} 8. Nc3 {[%clk 0:03:02]}  Bf5 {[%clk 0:02:46]} 9. Ne5 {[%clk 0:03:01]}  Nc6 {[%clk 0:02:46]} 10. Bf4 {[%clk 0:02:57]}  Ne4 {[%clk 0:02:31]} 11. Rc1 {[%clk 0:02:54]}  Nxc3 {[%clk 0:02:24]} 12. Rxc3 {[%clk 0:02:54]}  Nxe5 {[%clk 0:02:20]} 13. Bxe5 {[%clk 0:02:54]}  Be4 {[%clk 0:02:09]} 14. Bxg7 {[%clk 0:02:50]}  Kxg7 {[%clk 0:01:43]} 15. Qb3 {[%clk 0:02:48]}  Qd7 {[%clk 0:01:00]} 16. Rfc1 {[%clk 0:02:44]}  b6 {[%clk 0:00:53]} 17. Rc7 {[%clk 0:02:42]}  Qe6 {[%clk 0:00:52]} 18. Bxe4 {[%clk 0:02:19]}  Qxe4 {[%clk 0:00:51]} 19. e3 {[%clk 0:02:13]}  Rfd8 {[%clk 0:00:47]} 20. Qa3 {[%clk 0:02:11]}  e5 {[%clk 0:00:16]} 21. Qe7 {[%clk 0:02:09]}  Rf8 {[%clk 0:00:07]} 22. dxe5 {[%clk 0:02:08]}  Rae8 {[%clk 0:00:07]} 23. Qf6+ {[%clk 0:02:05]}  Kg8 {[%clk 0:00:07]} 24. Rxa7 {[%clk 0:01:59]}  Rxe5 {[%clk 0:00:07]} 25. Qf4 {[%clk 0:01:49]}  Qxf4 {[%clk 0:00:06]} 26. gxf4 {[%clk 0:01:50]}  Re4 {[%clk 0:00:07]} 27. Rd7 {[%clk 0:01:48]}  d4 {[%clk 0:00:06]} 28. Rxd4 {[%clk 0:01:47]}  Rxd4 {[%clk 0:00:06]} 29. exd4 {[%clk 0:01:48]}  Rd8 {[%clk 0:00:07]} 30. Rd1 {[%clk 0:01:49]}  Kg7 {[%clk 0:00:06]} 31. d5 {[%clk 0:01:49]}  Kf6 {[%clk 0:00:07]} 32. Kg2 {[%clk 0:01:49]}  Kf5 {[%clk 0:00:07]} 33. Kf3 {[%clk 0:01:50]}  h5 {[%clk 0:00:07]} 34. a4 {[%clk 0:01:47]}  Rd6 {[%clk 0:00:07]} 35. b4 {[%clk 0:01:47]}  h4 {[%clk 0:00:07]} 36. h3 {[%clk 0:01:46]}  Kf6 {[%clk 0:00:06]} 37. a5 {[%clk 0:01:43]}  bxa5 {[%clk 0:00:06]} 38. bxa5 {[%clk 0:01:44]}  Ra6 {[%clk 0:00:06]} 39. Ra1 {[%clk 0:01:44]}  Ke7 {[%clk 0:00:05]} 40. Ke4 {[%clk 0:01:44]}  Kd6 {[%clk 0:00:06]} 41. Kd4 {[%clk 0:01:43]}  f6 {[%clk 0:00:05]} 42. Ra2 {[%clk 0:01:42]}  g5 {[%clk 0:00:05]} 43. fxg5 {[%clk 0:01:41]}  fxg5 {[%clk 0:00:06]} 44. f3 {[%clk 0:01:42]}  Ra7 {[%clk 0:00:04]} 45. a6 {[%clk 0:01:42]}  Kc7 {[%clk 0:00:04]} 46. Kc5 {[%clk 0:01:42]}  Kb8 {[%clk 0:00:04]} 47. d6 {[%clk 0:01:41]}  Rf7 {[%clk 0:00:05]} 48. a7+ {[%clk 0:01:40]}  Ka8 {[%clk 0:00:05]} 49. Kc6 {[%clk 0:01:38]}  Rxf3 {[%clk 0:00:05]} 50. Ra5 {[%clk 0:01:09]}  Rxh3 {[%clk 0:00:05]} 51. d7 {[%clk 0:01:09]}  Rc3+ {[%clk 0:00:05]} 52. Kd6 {[%clk 0:01:08]}  Rd3+ {[%clk 0:00:04]} 53. Rd5 {[%clk 0:01:08]}  Rxd5+ {[%clk 0:00:04]} 54. Kxd5 {[%clk 0:01:09]}  Kxa7 {[%clk 0:00:04]} 55. d8=Q {[%clk 0:01:09]} 1-0


[Site "https://www.chess.com"]

[Event "Titled Tuesday Blitz July 25 Early 2023"]
[White "Cooper, Aaron"]
[Black "Parpiev, Isaak"]
[WhiteFideId "2634945"]
[BlackFideId "34281576"]
[WhiteElo "2298"]
[BlackElo "2601"]
[Result "0-1"]
[Round "1"]
[TimeControl "180+2"]
[Date "2023.07.25"]
[WhiteClock "0:00:01"]
[BlackClock "0:00:04"]
[Board "173"]

1. b4 {[%clk 0:03:00]}  d5 {[%clk 0:02:59]} 2. Bb2 {[%clk 0:02:58]}  Nf6 {[%clk 0:02:59]} 3. e3 {[%clk 0:02:56]}  Bf5 {[%clk 0:02:56]} 4. c4 {[%clk 0:02:52]}  e6 {[%clk 0:02:50]} 5. a3 {[%clk 0:02:43]}  Nbd7 {[%clk 0:02:49]} 6. Nf3 {[%clk 0:02:42]}  c6 {[%clk 0:02:44]} 7. d4 {[%clk 0:02:41]}  Bd6 {[%clk 0:02:43]} 8. Nc3 {[%clk 0:02:37]}  O-O {[%clk 0:02:41]} 9. Be2 {[%clk 0:02:32]}  h6 {[%clk 0:02:32]} 10. O-O {[%clk 0:02:30]}  Bc7 {[%clk 0:02:29]} 11. Rc1 {[%clk 0:02:27]}  Rc8 {[%clk 0:02:15]} 12. Qb3 {[%clk 0:02:26]}  Nb6 {[%clk 0:01:56]} 13. c5 {[%clk 0:01:45]}  Nbd7 {[%clk 0:01:56]} 14. a4 {[%clk 0:01:45]}  e5 {[%clk 0:01:54]} 15. Rfd1 {[%clk 0:01:14]}  e4 {[%clk 0:01:54]} 16. Nd2 {[%clk 0:01:13]}  Bg4 {[%clk 0:01:47]} 17. Nf1 {[%clk 0:01:11]}  Bxe2 {[%clk 0:01:46]} 18. Nxe2 {[%clk 0:01:12]}  h5 {[%clk 0:01:47]} 19. b5 {[%clk 0:01:05]}  Rb8 {[%clk 0:01:27]} 20. Bc3 {[%clk 0:01:02]}  h4 {[%clk 0:01:25]} 21. h3 {[%clk 0:01:01]}  Qe7 {[%clk 0:01:23]} 22. Qa2 {[%clk 0:00:51]}  Qe6 {[%clk 0:01:21]} 23. a5 {[%clk 0:00:37]}  cxb5 {[%clk 0:01:07]} 24. a6 {[%clk 0:00:34]}  bxa6 {[%clk 0:00:58]} 25. Ra1 {[%clk 0:00:34]}  b4 {[%clk 0:00:59]} 26. Be1 {[%clk 0:00:32]}  a5 {[%clk 0:01:00]} 27. Nd2 {[%clk 0:00:24]}  g5 {[%clk 0:00:52]} 28. Nb3 {[%clk 0:00:21]}  g4 {[%clk 0:00:51]} 29. hxg4 {[%clk 0:00:22]}  Qxg4 {[%clk 0:00:48]} 30. Nxa5 {[%clk 0:00:19]}  h3 {[%clk 0:00:39]} 31. Ng3 {[%clk 0:00:07]}  hxg2 {[%clk 0:00:26]} 32. Kxg2 {[%clk 0:00:05]}  Bxa5 {[%clk 0:00:10]} 33. Qxa5 {[%clk 0:00:05]}  Nh5 {[%clk 0:00:06]} 34. Qxa7 {[%clk 0:00:03]}  Ndf6 {[%clk 0:00:04]} 35. Ra6 {[%clk 0:00:02]}  Nxg3 {[%clk 0:00:04]} 36. fxg3 {[%clk 0:00:03]}  Qf3+ {[%clk 0:00:04]} 37. Kg1 {[%clk 0:00:01]}  Qxd1 {[%clk 0:00:04]} 0-1


[Site "https://www.chess.com"]